bitfinex/quotes_SOLUSD_20240530
["timestamp","ask_amount","ask_price","bid_price","bid_amount"]
[1717061565950,7.02,165.43,165.4,62.2369]
[1717061566145,2.2362,165.46,165.4,62.2369]
[1717061566350,7.02,165.44,165.42,60.0]
[1717061566765,7.02,165.44,165.4,62.2369]
[1717061567169,2.2362,165.46,165.4,62.2369]
[1717061567449,7.02,165.44,165.4,62.2369]
[1717061567648,2.2362,165.46,165.4,62.2369]
[1717061568066,7.02,165.44,165.4,62.2369]
[1717061569670,2.2362,165.46,165.4,68.4805]
[1717061569854,7.02,165.44,165.4,68.4805]
[1717061570968,2.2362,165.46,165.4,68.4805]
[1717061571169,7.02,165.44,165.4,68.4805]
[1717061573000,7.02,165.44,165.39,25.16]
[1717061573001,7.02,165.42,165.39,2.2371]
[1717061573175,7.02,165.42,165.4,2.2369]
[1717061573492,7.02,165.42,165.39,2.2371]
[1717061573665,7.02,165.43,165.39,2.2371]
[1717061574874,7.02,165.43,165.4,60.0]
[1717061575188,7.02,165.42,165.39,2.2371]
[1717061576477,7.02,165.42,165.38,62.2372]
[1717061576678,7.02,165.42,165.39,2.2371]
[1717061577598,7.02,165.43,165.39,2.2371]
[1717061578193,7.02,165.43,165.4,62.2369]
[1717061582297,7.02,165.41,165.38,2.2371]
[1717061582471,2.2366,165.43,165.37,2.2373]
[1717061583297,2.2367,165.42,165.37,2.2373]
[1717061583469,28.08,165.44,165.37,2.2373]
[1717061583990,2.2366,165.43,165.37,2.2373]
[1717061584367,2.2367,165.42,165.37,2.2373]
[1717061584568,28.08,165.44,165.36,62.2375]
[1717061585095,2.2366,165.43,165.37,2.2373]
[1717061586291,2.2366,165.43,165.38,60.0]
[1717061586661,7.02,165.41,165.38,60.0]
[1717061587490,7.02,165.41,165.38,62.2372]
[1717061589102,7.02,165.42,165.38,62.2372]
[1717061592490,7.02,165.41,165.38,62.2372]
[1717061595971,7.02,165.41,165.38,60.0]
[1717061596168,7.02,165.41,165.38,62.2372]
[1717061600476,7.02,165.41,165.38,60.0]
[1717061600894,7.02,165.41,165.38,62.2372]
[1717061602906,7.02,165.42,165.38,62.2372]
[1717061604299,15.1814,165.49,165.41,60.0]
[1717061604498,7.02,165.45,165.41,62.2367]
[1717061604894,7.02,165.44,165.41,62.2367]
[1717061605506,7.02,165.44,165.41,62.2368]
[1717061605686,7.02,165.45,165.41,62.2368]
[1717061606707,7.02,165.44,165.41,62.2368]
[1717061608303,7.02,165.43,165.41,62.2368]
[1717061613926,7.02,165.43,165.42,2.2367]
[1717061615421,10.4844,165.5,165.42,2.2367]
[1717061615422,7.02,165.44,165.42,2.2367]
[1717061616103,2.2359,165.48,165.42,2.2367]
[1717061616409,7.02,165.44,165.42,2.2367]
[1717061616618,2.236,165.47,165.42,2.2367]
[1717061616822,7.02,165.44,165.42,2.2367]
[1717061618417,2.2359,165.48,165.43,62.2365]
[1717061618622,28.08,165.52,165.45,60.0]
[1717061618990,7.02,165.48,165.45,60.0]
[1717061619191,10.5275,165.54,165.45,60.0]
[1717061619393,7.02,165.49,165.46,2.2361]
[1717061620292,7.02,165.49,165.45,62.2362]
[1717061621218,7.02,165.48,165.45,62.2362]
[1717061622001,2.2355,165.51,165.46,2.2361]
[1717061622318,2.2354,165.52,165.46,2.2361]
[1717061622517,7.02,165.48,165.46,2.2361]
[1717061623507,2.2355,165.51,165.46,2.2361]
[1717061624214,2.2357,165.5,165.43,60.0]
[1717061624625,2.2357,165.5,165.44,2.2363]
[1717061627723,7.02,165.46,165.44,2.2363]
[1717061631726,7.02,165.46,165.45,2.2363]
[1717061633505,7.02,165.46,165.44,2.2364]
[1717061633712,7.02,165.45,165.42,62.2366]
[1717061633917,7.02,165.44,165.43,2.2365]
[1717061634813,2.2356,165.5,165.44,2.2364]
[1717061635017,7.02,165.45,165.44,2.2364]
[1717061635331,7.02,165.46,165.44,2.2364]
[1717061635518,7.02,165.45,165.44,2.2364]
[1717061635717,7.02,165.46,165.45,2.2363]
[1717061636927,7.02,165.46,165.44,2.2364]
[1717061637529,7.02,165.47,165.44,2.2364]
[1717061637714,7.02,165.47,165.44,62.2364]
[1717061639114,7.02,165.47,165.44,62.2364]
[1717061639316,7.02,165.46,165.44,2.2364]
[1717061641320,7.02,165.45,165.42,62.2367]
[1717061641624,7.02,165.44,165.42,62.2367]
[1717061641944,2.2361,165.47,165.42,62.2367]
[1717061641945,7.02,165.43,165.42,62.2367]
[1717061643730,7.02,165.43,165.42,60.0]
[1717061646144,7.02,165.43,165.38,60.0]
[1717061646349,7.02,165.39,165.37,2.2373]
[1717061646527,9.2565,165.44,165.35,2.2375]
[1717061646528,7.02,165.38,165.35,2.2375]
[1717061646853,7.02,165.37,165.34,448.7]
[1717061647040,7.02,165.37,165.36,2.2375]
[1717061648557,30.3165,165.44,165.35,20.0]
[1717061648723,7.02,165.37,165.36,2.2375]
[1717061652029,4.65747762,165.43,165.37,2.2373]
[1717061652225,7.02,165.38,165.37,2.2373]
[1717061654663,4.65747762,165.43,165.37,2.2373]
[1717061654834,7.02,165.38,165.37,2.2373]
[1717061656163,4.65747762,165.43,165.37,2.2373]
[1717061656164,2.2366,165.43,165.37,2.2373]
[1717061656565,7.02,165.4,165.37,2.2373]
[1717061656772,7.02,165.39,165.37,2.2373]
[1717061657777,2.2366,165.43,165.37,2.2373]
[1717061657954,7.02,165.39,165.37,2.2373]
[1717061658644,2.2366,165.43,165.37,2.2373]
[1717061658862,2.2364,165.44,165.38,62.2372]
[1717061659769,7.02,165.39,165.38,60.0]
[1717061660073,7.02,165.39,165.38,62.2372]
[1717061660272,7.02,165.39,165.38,60.0]
[1717061662658,7.02,165.39,165.38,62.2372]
[1717061663087,7.02,165.39,165.38,60.0]
[1717061664681,2.2367,165.42,165.38,60.0]
[1717061664978,2.2366,165.43,165.38,60.0]
[1717061665179,7.02,165.39,165.38,60.0]
[1717061668279,2.2366,165.43,165.38,60.0]
[1717061668579,7.02,165.39,165.38,60.0]
[1717061668755,7.02,165.39,165.33,2.2379]
[1717061668756,9.2571,165.39,165.33,2.2379]
[1717061668951,7.02,165.34,165.31,18.14]
[1717061669157,7.02,165.34,165.3,448.7]
[1717061669369,7.02,165.34,165.32,2.2379]
[1717061671587,2.2371,165.39,165.33,62.2379]
[1717061672082,7.02,165.35,165.33,62.2379]
[1717061673576,7.02,165.35,165.33,60.0]
[1717061677495,2.2372,165.38,165.33,60.0]
[1717061677677,7.02,165.35,165.33,60.0]
[1717061678589,2.2372,165.38,165.33,60.0]
[1717061678794,7.02,165.34,165.33,60.0]
[1717061679171,2.2372,165.38,165.33,60.0]
[1717061679372,7.02,165.34,165.33,60.0]
[1717061680991,2.2372,165.38,165.33,60.0]
[1717061681197,7.02,165.34,165.33,60.0]
[1717061681986,2.2372,165.38,165.33,60.0]
[1717061682184,7.02,165.34,165.33,60.0]
[1717061682585,2.2372,165.38,165.33,60.0]
[1717061682771,7.02,165.34,165.33,60.0]
[1717061683591,2.2373,165.38,165.33,60.0]
[1717061683793,7.02,165.34,165.33,60.0]
[1717061684499,7.02,165.34,165.32,2.238]
[1717061686397,7.02,165.33,165.31,62.2381]
[1717061686698,7.02,165.32,165.31,62.2381]
[1717061687891,2.2373,165.38,165.32,2.238]
[1717061688207,7.02,165.34,165.33,60.0]
[1717061697883,7.02,165.34,165.31,62.2381]
[1717061698218,7.02,165.33,165.31,62.2381]
[1717061699293,7.02,165.32,165.31,62.2381]
[1717061699893,7.02,165.32,165.3,2.2383]
[1717061700201,7.02,165.36,165.27,60.0]
[1717061700411,2.2379,165.34,165.28,2.2386]
[1717061700607,7.02,165.29,165.28,2.2386]
[1717061701133,7.02,165.29,165.27,62.2387]
[1717061704291,7.02,165.29,165.28,2.2386]
[1717061707215,7.02,165.29,165.25,60.0]
[1717061707515,7.02,165.27,165.26,2.2388]
[1717061709282,7.02,165.27,165.25,60.0]
[1717061709490,7.02,165.26,165.24,2.2391]
[1717061709711,7.02,165.25,165.24,2.2391]
[1717061710409,7.02,165.26,165.25,2.239]
[1717061710791,7.02,165.27,165.25,2.239]
[1717061711500,7.02,165.27,165.24,2.2391]
[1717061712204,7.02,165.26,165.24,2.2391]
[1717061713218,4.476,165.33,165.23,2.2392]
[1717061713219,7.02,165.25,165.23,2.2392]
[1717061713512,7.02,165.25,165.22,2.2393]
[1717061713721,7.02,165.24,165.23,2.2392]
[1717061713904,2.2385,165.29,165.23,2.2392]
[1717061714200,7.02,165.25,165.23,2.2392]
[1717061714809,7.02,165.25,165.22,2.2393]
[1717061715921,7.02,165.24,165.23,2.2393]
[1717061716218,9.2586,165.28,165.22,2.2393]
[1717061716421,30.3186,165.28,165.22,2.2393]
[1717061717394,2.2387,165.27,165.21,62.2395]
[1717061718419,4.65957762,165.27,165.21,2.2395]
[1717061718720,7.02,165.22,165.2,2.2396]
[1717061719610,7.02,165.21,165.19,60.0]
[1717061719813,7.02,165.2,165.19,62.2398]
[1717061720120,7.02,165.2,165.19,2.2398]
[1717061723124,7.02,165.2,165.18,2.2399]
[1717061723302,7.02,165.19,165.18,2.2399]
[1717061724020,7.02,165.19,165.15,63.0487178]
[1717061724220,2.2395,165.21,165.16,60.0]
[1717061724411,7.02,165.19,165.16,60.0]
[1717061724613,7.02,165.19,165.16,62.2402]
[1717061725126,11.1946,165.26,165.16,62.2402]
[1717061725127,2.2389,165.26,165.2,2.2396]
[1717061725314,7.02,165.22,165.19,2.2397]
[1717061725516,2.239,165.25,165.19,2.2397]
[1717061725825,7.02,165.21,165.19,2.2397]
[1717061726815,7.02,165.2,165.18,2.2399]
[1717061728308,7.02,165.19,165.17,2.24]
[1717061728625,7.02,165.18,165.17,2.24]
[1717061729700,7.02,165.18,165.15,0.8084178]
[1717061729907,7.02,165.18,165.16,2.2401]
[1717061730203,2.2393,165.23,165.17,2.2401]
[1717061730403,7.02,165.19,165.17,2.2401]
[1717061730620,7.02,165.19,165.18,2.2399]
[1717061730803,7.02,165.2,165.18,2.2399]
[1717061731803,7.02,165.2,165.17,2.24]
[1717061732830,7.02,165.19,165.17,2.24]
[1717061735406,7.02,165.19,165.16,2.2402]
[1717061735914,7.02,165.18,165.15,0.8084178]
[1717061736125,7.02,165.18,165.15,3.0487178]
[1717061737029,2.2396,165.21,165.15,3.0487178]
[1717061737030,7.02,165.17,165.15,3.0487178]
[1717061737233,7.02,165.17,165.15,0.8084178]
[1717061738110,7.02,165.17,165.15,3.0487178]
[1717061739434,7.02,165.18,165.15,3.0487178]
[1717061740638,2.2396,165.21,165.15,3.0487178]
[1717061740819,7.02,165.18,165.15,3.0487178]
[1717061741436,7.02,165.19,165.16,62.2402]
[1717061741842,2.2394,165.22,165.16,62.2402]
[1717061742141,7.02,165.18,165.16,62.2402]
[1717061743332,7.02,165.18,165.15,3.0487178]
[1717061743533,7.02,165.17,165.15,3.0487178]
[1717061744720,2.2396,165.21,165.15,3.0487178]
[1717061745017,7.02,165.17,165.15,3.0487178]
[1717061746033,7.02,165.17,165.15,0.8084178]
[1717061746240,7.02,165.16,165.15,0.8084178]
[1717061747237,30.3197,165.2,165.15,0.8084178]
[1717061747645,30.3197,165.2,165.15,3.0487178]
[1717061747828,7.02,165.16,165.15,3.0487178]
[1717061748018,7.02,165.17,165.15,3.0487178]
[1717061750448,2.2397,165.2,165.15,3.0487178]
[1717061750649,7.02,165.17,165.15,3.0487178]
[1717061752154,2.2397,165.2,165.15,3.0487178]
[1717061752336,7.02,165.17,165.15,3.0487178]
[1717061752643,7.02,165.17,165.15,0.8084178]
[1717061756639,7.02,165.17,165.15,3.0487178]
[1717061758331,7.02,165.17,165.15,0.8084178]
[1717061759554,2.2397,165.2,165.15,0.8084178]
[1717061759555,7.02,165.16,165.15,0.8084178]
[1717061763066,2.2397,165.2,165.15,0.8084178]
[1717061763241,7.02,165.17,165.15,0.8084178]
[1717061763443,7.02,165.16,165.15,0.8084178]
[1717061765772,2.2399,165.19,165.15,0.8084178]
[1717061766245,30.3197,165.2,165.15,0.8084178]
[1717061766669,7.02,165.17,165.15,0.8084178]
[1717061770574,7.02,165.16,165.15,0.8084178]
[1717061780970,9.2602,165.16,165.15,0.8084178]
[1717061782958,7.02,165.16,165.15,0.8084178]
[1717061784076,9.2602,165.16,165.15,0.8084178]
[1717061784877,32.5596,165.2,165.15,0.8084178]
[1717061785182,7.02,165.16,165.15,0.8084178]
[1717061785383,2.2399,165.19,165.15,0.8084178]
[1717061785677,7.02,165.16,165.15,0.8084178]
[1717061787080,8.4469,165.16,165.15,0.8084178]
[1717061787283,19.9474,165.16,165.15,0.8084178]
[1717061787482,15.4669,165.16,165.15,0.8084178]
[1717061788464,24.9673,165.16,165.15,0.8084178]
[1717061788673,6.7212,165.15,165.07,0.03767718]
[1717061788877,7.02,165.08,165.07,0.03767718]
[1717061789761,9.2613,165.08,165.07,0.03767718]
[1717061790266,35.1,165.08,164.99,60.8084178]
[1717061790576,2.2416,165.07,165.01,18.14]
[1717061790777,7.02,165.04,165.02,60.0]
[1717061790987,2.2413,165.08,165.02,60.0]
[1717061791273,7.02,165.03,165.01,2.2422]
[1717061791580,7.02,165.03,165.0,2.2424]
[1717061791779,7.02,165.02,165.0,2.2424]
[1717061791984,2.2415,165.07,165.02,60.0]
[1717061792298,7.02,165.04,165.01,8.3181]
[1717061792467,7.02,165.05,165.02,60.0]
[1717061792664,2.2413,165.08,165.02,60.0]
[1717061792964,7.02,165.05,165.02,62.2421]
[1717061793385,7.02,165.05,165.01,24.2159]
[1717061793386,7.02,165.05,165.01,8.3181]
[1717061793584,7.02,165.03,165.0,62.2424]
[1717061793776,7.02,165.03,165.0,60.0]
[1717061794696,7.02,165.03,165.0,62.2423]
[1717061795271,7.02,165.03,165.01,2.2422]
[1717061795573,2.2413,165.08,165.02,62.2421]
[1717061795767,7.02,165.06,165.02,62.2421]
[1717061795965,7.02,165.06,165.02,68.4297]
[1717061796282,7.02,165.05,165.02,62.2421]
[1717061796481,7.02,165.04,165.02,2.2421]
[1717061796972,7.02,165.04,165.01,20.3822]
[1717061797175,7.02,165.03,165.01,20.3822]
[1717061797489,7.02,165.03,165.02,45.0]
[1717061799586,7.02,165.03,164.99,0.8084178]
[1717061799786,7.02,165.01,164.99,0.8084178]
[1717061800096,7.02,165.0,164.99,0.8084178]
[1717061801680,2.2417,165.05,164.99,0.8084178]
[1717061801888,7.02,165.01,164.99,3.0509178]
[1717061802202,6.1673,165.07,164.99,45.8084178]
[1717061802203,7.02,165.02,164.99,45.8084178]
[1717061802791,7.02,165.01,164.99,45.8084178]
[1717061802978,7.02,165.01,164.99,48.0509178]
[1717061803180,7.02,165.01,164.99,45.8084178]
[1717061806085,7.02,165.01,164.99,48.0509178]
[1717061806897,7.02,165.04,165.0,60.0]
[1717061807203,6.7235,165.1,165.0,60.0]
[1717061807204,6.1202,165.11,165.02,60.0]
[1717061807387,7.02,165.05,165.02,60.0]
[1717061807785,7.02,165.06,165.02,60.0]
[1717061808084,7.02,165.05,165.0,80.3823]
[1717061808685,7.02,165.04,165.0,80.3823]
[1717061808996,7.02,165.04,165.0,62.2423]
[1717061809300,7.02,165.03,164.99,48.0509178]
[1717061809495,7.02,165.03,164.99,45.8084178]
[1717061809680,7.02,165.03,165.0,2.2424]
[1717061810796,2.2416,165.06,165.01,2.2422]
[1717061811000,7.02,165.05,165.01,2.2422]
[1717061812108,7.02,165.05,165.02,60.0]
[1717061812279,7.02,165.06,165.02,62.2421]
[1717061812481,7.02,165.06,165.02,60.0]
[1717061813704,7.02,165.05,165.02,60.0]
[1717061816900,2.2413,165.09,165.04,60.0]
[1717061817087,9.2613,165.08,165.04,60.0]
[1717061817294,7.02,165.08,165.04,60.0]
[1717061817802,2.2412,165.09,165.03,2.2419]
[1717061817803,7.02,165.07,165.03,2.2419]
[1717061817995,2.2412,165.09,165.03,2.2419]
[1717061818193,7.02,165.07,165.03,2.2419]
[1717061819575,7.02,165.06,165.03,2.2419]
[1717061819780,7.02,165.06,165.02,80.3821]
[1717061820789,7.02,165.05,165.02,20.3821]
[1717061821094,7.02,165.05,165.0,62.2423]
[1717061821293,7.02,165.03,164.99,0.8084178]
[1717061821496,7.02,165.03,164.99,3.0509178]
[1717061821698,7.02,165.02,164.99,0.8084178]
[1717061822284,7.02,165.02,164.99,3.0509178]
[1717061822491,2.2419,165.04,164.99,3.0509178]
[1717061822893,7.02,165.02,164.99,3.0509178]
[1717061823307,7.02,165.02,164.99,0.8084178]
[1717061824784,7.02,165.01,164.99,0.8084178]
[1717061826817,2.242,165.03,164.99,0.8084178]
[1717061826990,2.2419,165.04,164.99,0.8084178]
[1717061827191,7.02,165.02,164.99,3.0509178]
[1717061827401,7.02,165.02,164.99,0.8084178]
[1717061827714,2.2419,165.04,164.99,3.0509178]
[1717061827916,7.02,165.02,164.99,3.0509178]
[1717061828209,7.02,165.01,164.99,3.0509178]
[1717061828385,7.02,165.01,164.99,0.8084178]
[1717061828593,7.02,165.0,164.99,0.8084178]
[1717061829011,9.2624,165.0,164.99,0.8084178]
[1717061829402,7.02,165.0,164.99,0.8084178]
[1717061830123,2.242,165.03,164.99,0.8084178]
[1717061830321,7.02,165.01,164.99,0.8084178]
[1717061831702,7.02,165.0,164.99,0.8084178]
[1717061833117,2.242,165.03,164.99,0.8084178]
[1717061833315,2.2424,165.0,164.99,0.8084178]
[1717061833610,8.4321,165.02,164.99,0.8084178]
[1717061833819,7.02,165.0,164.99,0.8084178]
[1717061835324,15.7234,165.0,164.99,0.8084178]
[1717061837210,33.45557762,165.0,164.99,0.8084178]
[1717061837430,2.2429,164.96,164.92,0.3434611]
[1717061837653,7.02,164.94,164.92,0.3434611]
[1717061837806,2.2428,164.97,164.92,2.5868611]
[1717061838010,7.02,164.96,164.92,2.5868611]
[1717061838211,2.2427,164.98,164.92,2.5868611]
[1717061838419,7.02,164.97,164.93,2.2433]
[1717061838620,7.02,164.96,164.93,2.2433]
[1717061838843,7.02,164.98,164.93,2.2433]
[1717061839027,2.2426,164.99,164.93,2.2433]
[1717061839242,2.2426,164.99,164.93,62.2433]
[1717061839538,2.2426,164.99,164.94,47.2432]
[1717061839732,9.2626,164.99,164.94,47.2432]
[1717061840034,4.4842,165.03,164.95,2.2431]
[1717061840229,7.02,164.99,164.95,2.2431]
[1717061840538,9.2625,164.99,164.94,47.2431]
[1717061840835,7.02,164.98,164.94,47.2431]
[1717061841020,2.2428,164.97,164.92,0.3434611]
[1717061841340,7.02,164.95,164.92,0.3434611]
[1717061841534,2.2429,164.97,164.92,0.3434611]
[1717061841939,2.42087762,165.03,164.92,0.3434611]
[1717061842128,7.02,164.98,164.94,2.2431]
[1717061842659,2.2423,165.01,164.95,2.243]
[1717061842815,7.02,165.0,164.96,2.2429]
[1717061843311,9.2624,165.0,164.93,18.14]
[1717061843516,7.02,165.0,164.94,9.2632]
[1717061843717,7.02,164.99,164.94,8.753]
[1717061843920,2.2425,165.0,164.95,2.243]
[1717061844328,7.02,164.99,164.95,2.243]
[1717061845714,2.2423,165.01,164.96,2.2429]
[1717061845943,7.02,165.0,164.96,2.2429]
[1717061846128,7.02,165.0,164.96,62.2429]
[1717061846628,7.02,165.01,164.97,2.2427]
[1717061847043,9.2622,165.01,164.96,6.1251]
[1717061847226,7.02,165.0,164.96,6.1251]
[1717061847725,7.02,165.0,164.96,8.368]
[1717061849445,7.02,165.0,164.96,2.2429]
[1717061850043,7.02,165.0,164.97,2.2428]
[1717061852343,7.02,165.01,164.97,2.2428]
[1717061852549,7.02,164.98,164.94,2.2431]
[1717061852747,7.02,164.97,164.94,2.2431]
[1717061853452,7.02,164.97,164.95,2.243]
[1717061855133,2.2425,165.0,164.95,2.243]
[1717061855332,7.02,164.99,164.95,2.243]
[1717061856752,7.02,164.98,164.95,2.243]
[1717061859654,28.08,165.04,164.95,60.0]
[1717061859859,7.02,165.02,164.97,2.2427]
[1717061860349,2.242,165.03,164.98,2.2426]
[1717061860548,7.02,165.02,164.98,2.2426]
[1717061861256,7.02,165.01,164.97,2.2427]
[1717061861467,7.02,165.01,164.96,2.2429]
[1717061861664,7.02,165.01,164.97,2.2428]
[1717061861832,7.02,165.0,164.97,2.2428]
[1717061862556,7.02,165.01,164.97,2.2428]
[1717061862938,7.02,165.01,164.98,2.2426]
[1717061863259,7.02,165.02,164.98,2.2426]
[1717061865353,2.242,165.03,164.98,2.2426]
[1717061865553,9.262,165.03,164.98,2.2426]
[1717061867445,2.242,165.03,164.98,2.2426]
[1717061867642,7.02,165.02,164.98,2.2426]
[1717061868960,9.262,165.03,164.98,2.2426]
[1717061870136,2.2421,165.02,164.97,75.6133]
[1717061870573,4.4829,165.07,164.98,7.02]
[1717061870761,9.2619,165.04,164.98,9.2626]
[1717061871571,2.242,165.03,164.98,9.2626]
[1717061871745,2.242,165.03,164.98,15.6948]
[1717061872453,9.2619,165.04,164.99,2.2425]
[1717061872644,7.02,165.04,164.98,13.4522]
[1717061872979,2.242,165.03,164.98,15.6948]
[1717061874269,2.242,165.03,164.99,60.0]
[1717061874443,9.2617,165.05,164.99,69.2624]
[1717061874641,4.4829,165.07,165.0,7.02]
[1717061874954,2.2418,165.04,165.0,7.02]
[1717061876865,2.2417,165.05,165.0,9.2624]
[1717061879251,7.02,165.01,164.95,450.9429]
[1717061879455,7.02,165.01,164.96,27.02]
[1717061879770,4.4832,165.06,164.97,60.0]
[1717061880072,9.262,165.03,164.98,2.2426]
[1717061880448,2.2419,165.04,164.98,2.2426]
[1717061880649,7.02,165.03,164.98,2.2426]
[1717061881260,2.2422,165.01,164.95,388.7]
[1717061881467,7.02,165.0,164.95,390.9429]
[1717061881770,2.2423,165.01,164.96,2.2428]
[1717061881950,7.02,165.01,164.97,2.2428]
[1717061882153,7.02,165.02,164.98,2.2426]
[1717061882352,2.242,165.03,164.98,2.2426]
[1717061882353,9.262,165.03,164.98,2.2426]
[1717061882554,2.242,165.03,164.98,2.2426]
[1717061882753,9.262,165.03,164.98,62.2426]
[1717061882957,11.2069,165.08,164.98,62.2426]
[1717061882958,2.2418,165.05,164.99,2.2424]
[1717061883157,9.2618,165.05,164.99,9.2624]
[1717061883361,2.2418,165.05,164.99,9.2624]
[1717061883557,9.2618,165.05,164.99,9.2624]
[1717061883853,2.2419,165.04,164.99,2.2424]
[1717061884162,9.2619,165.04,164.99,7.02]
[1717061884354,2.2419,165.04,164.99,7.02]
[1717061884666,9.2619,165.04,164.98,85.16]
[1717061884865,9.2619,165.04,164.98,60.0]
[1717061885080,7.02,165.03,164.98,2.2425]
[1717061885254,7.02,165.02,164.98,2.2425]
[1717061885647,2.2419,165.04,164.99,2.2425]
[1717061885648,7.02,165.03,164.99,2.2425]
[1717061887656,7.02,165.02,164.99,2.2425]
[1717061887973,2.2419,165.04,164.99,2.2425]
[1717061888150,9.2619,165.04,164.99,2.2425]
[1717061888568,2.2417,165.05,165.0,2.2424]
[1717061888770,7.02,165.04,165.0,2.2424]
[1717061891361,2.2417,165.05,165.0,2.2424]
[1717061891678,7.02,165.04,165.0,2.2424]
[1717061892372,11.2108,165.02,164.93,2.2433]
[1717061892575,7.02,164.97,164.93,2.2433]
[1717061892778,2.2424,165.0,164.95,6.0123]
[1717061892965,9.2624,165.0,164.95,6.0123]
[1717061893162,9.2624,165.0,164.93,60.0]
[1717061893359,7.02,164.98,164.94,2.2431]
[1717061893560,2.2425,164.99,164.94,2.2431]
[1717061893792,9.2625,164.99,164.94,2.2431]
[1717061894080,2.2423,165.01,164.95,90.9069]
[1717061894377,2.2421,165.03,164.97,62.2427]
[1717061894675,11.2082,165.06,164.97,68.411]
[1717061894676,9.2621,165.02,164.97,68.411]
[1717061895478,2.2423,165.01,164.97,6.1683]
[1717061895676,9.2623,165.01,164.96,2.2429]
[1717061895976,9.2623,165.01,164.96,20.3829]
[1717061896379,7.02,165.01,164.96,20.3829]
[1717061896581,7.02,165.01,164.96,26.6228]
[1717061896772,2.242,165.03,164.97,62.2428]
[1717061897082,7.02,165.02,164.97,68.3375]
[1717061897277,7.02,165.02,164.96,18.14]
[1717061897480,7.02,165.01,164.95,67.02]
[1717061897693,2.2426,164.99,164.94,8.3991]
[1717061897866,9.2626,164.99,164.94,8.3991]
[1717061898467,2.2426,164.99,164.94,2.2432]
[1717061898671,9.2627,164.98,164.93,2.2433]
[1717061899073,7.02,164.98,164.92,389.0434611]
[1717061899273,7.02,164.97,164.92,391.2868611]
[1717061899584,9.2627,164.98,164.92,391.2868611]
[1717061900168,2.2428,164.97,164.92,391.2868611]
[1717061903191,2.2429,164.96,164.92,0.3434611]
[1717061903480,2.2431,164.95,164.92,0.3434611]
[1717061904064,9.263,164.96,164.92,0.3434611]
[1717061904263,2.243,164.96,164.92,0.3434611]
[1717061904464,2.2433,164.93,164.92,0.3434611]
[1717061904666,9.2633,164.93,164.92,0.3434611]
[1717061904859,2.2433,164.93,164.92,0.3434611]
[1717061905064,7.02,164.94,164.92,0.3434611]
[1717061905483,10.9871,164.98,164.92,0.3434611]
[1717061905691,7.02,164.95,164.92,0.3434611]
[1717061906686,2.243,164.96,164.92,0.3434611]
[1717061906874,7.02,164.95,164.92,0.3434611]
[1717061907071,8.9698,165.0,164.92,0.3434611]
[1717061907262,2.2429,164.96,164.92,0.3434611]
[1717061907464,2.2431,164.95,164.92,0.3434611]